[Event "*** SCC Grand Prix: Titled Tuesday Blitz"]
[Site "Chess.com"]
[Date "2020.07.21"]
[Round "2"]
[White "TheWolfSpur"]
[Black "GustavoJuarezF"]
[Result "1-0"]
[WhiteElo "2370"]
[BlackElo "2010"]
[TimeControl "180+1"]
[EndTime "10:16:37 PDT"]
[Termination "TheWolfSpur won by resignation"]

1. d4 {[%clk 0:03:00.9]} 1... g6 {[%clk 0:02:58.5]} 2. c4 {[%clk 0:03:01.4]}
2... Bg7 {[%clk 0:02:58.7]} 3. Nc3 {[%clk 0:03:01.8]} 3... d6 {[%clk 0:02:58.6]}
4. e4 {[%clk 0:03:01.4]} 4... Nc6 {[%clk 0:02:57.1]} 5. Nge2 {[%clk 0:02:50.5]}
5... e5 {[%clk 0:02:56.2]} 6. Be3 {[%clk 0:02:49.9]} 6... exd4 {[%clk
0:02:48.5]} 7. Nxd4 {[%clk 0:02:50.8]} 7... Nge7 {[%clk 0:02:45.8]} 8. Be2
{[%clk 0:02:47.8]} 8... O-O {[%clk 0:02:45.6]} 9. O-O {[%clk 0:02:39.5]} 9...
Bd7 {[%clk 0:02:41.8]} 10. Qd2 {[%clk 0:02:31.9]} 10... Re8 {[%clk 0:02:39.4]}
11. Rad1 {[%clk 0:02:22.5]} 11... Ne5 {[%clk 0:02:32.1]} 12. f3 {[%clk
0:02:14.6]} 12... N7c6 {[%clk 0:02:21.2]} 13. Rfe1 {[%clk 0:02:00.8]} 13... Nxd4
{[%clk 0:02:19.3]} 14. Bxd4 {[%clk 0:02:01.7]} 14... Bc6 {[%clk 0:02:15.9]} 15.
Bf1 {[%clk 0:01:59.5]} 15... a6 {[%clk 0:02:09.5]} 16. Nd5 {[%clk 0:01:54.4]}
16... Bxd5 {[%clk 0:01:59.9]} 17. cxd5 {[%clk 0:01:54.5]} 17... Qd7 {[%clk
0:01:29.3]} 18. f4 {[%clk 0:01:30.9]} 18... Ng4 {[%clk 0:01:27.6]} 19. Bxg7
{[%clk 0:01:31.8]} 19... Kxg7 {[%clk 0:01:27.1]} 20. h3 {[%clk 0:01:28.2]} 20...
Nf6 {[%clk 0:01:14.7]} 21. e5 {[%clk 0:01:25.8]} 21... dxe5 {[%clk 0:01:13.1]}
22. fxe5 {[%clk 0:01:26.7]} 22... Nh5 {[%clk 0:01:03.9]} 23. g4 {[%clk
0:01:11.1]} 23... Ng3 {[%clk 0:01:01.3]} 24. Bg2 {[%clk 0:01:10.9]} 24... h5
{[%clk 0:00:56.6]} 25. Qf4 {[%clk 0:01:07.7]} 25... h4 {[%clk 0:00:52.4]} 26.
Qf6+ {[%clk 0:00:51.2]} 26... Kg8 {[%clk 0:00:46.3]} 27. Qxh4 {[%clk 0:00:51]}
27... Qa4 {[%clk 0:00:36.8]} 28. Qxg3 {[%clk 0:00:48.9]} 28... Qxa2 {[%clk
0:00:35.9]} 29. Rd2 {[%clk 0:00:43.4]} 29... Rad8 {[%clk 0:00:30.8]} 30. Rde2
{[%clk 0:00:42.5]} 30... Re6 {[%clk 0:00:23.7]} 31. dxe6 {[%clk 0:00:39.9]} 1-0

[Event "*** SCC Grand Prix: Titled Tuesday Blitz"]
[Site "Chess.com"]
[Date "2020.07.21"]
[Round "2"]
[White "NiranjanNavalgund"]
[Black "kidagent"]
[Result "1-0"]
[WhiteElo "2442"]
[BlackElo "2219"]
[TimeControl "180+1"]
[EndTime "10:16:38 PDT"]
[Termination "NiranjanNavalgund won by resignation"]

1. d4 {[%clk 0:03:00.9]} 1... d5 {[%clk 0:02:59.5]} 2. Nf3 {[%clk 0:03:00]} 2...
Nf6 {[%clk 0:02:59]} 3. c4 {[%clk 0:02:59.9]} 3... c6 {[%clk 0:02:58.8]} 4. g3
{[%clk 0:02:59.5]} 4... Bf5 {[%clk 0:02:54.7]} 5. Bg2 {[%clk 0:02:59.6]} 5... e6
{[%clk 0:02:54.3]} 6. Nc3 {[%clk 0:02:58.7]} 6... dxc4 {[%clk 0:02:53.5]} 7. Nh4
{[%clk 0:02:58.4]} 7... Bg4 {[%clk 0:02:52.1]} 8. Qa4 {[%clk 0:02:56.6]} 8...
Be7 {[%clk 0:02:40.8]} 9. O-O {[%clk 0:02:55.4]} 9... O-O {[%clk 0:02:37.6]} 10.
Qxc4 {[%clk 0:02:55.2]} 10... Nbd7 {[%clk 0:02:36.1]} 11. e4 {[%clk 0:02:51.4]}
11... Nb6 {[%clk 0:02:33.2]} 12. Qd3 {[%clk 0:02:51.7]} 12... e5 {[%clk
0:02:30.7]} 13. Be3 {[%clk 0:02:50.9]} 13... exd4 {[%clk 0:02:25.2]} 14. Qxd4
{[%clk 0:02:51.8]} 14... Qxd4 {[%clk 0:02:17.9]} 15. Bxd4 {[%clk 0:02:52.7]}
15... Rfd8 {[%clk 0:02:13.6]} 16. Be3 {[%clk 0:02:51]} 16... Nc4 {[%clk
0:02:12.4]} 17. Bc1 {[%clk 0:02:50.4]} 17... Bb4 {[%clk 0:02:04.6]} 18. h3
{[%clk 0:02:50.1]} 18... Be6 {[%clk 0:01:52.6]} 19. Nf5 {[%clk 0:02:42.4]} 19...
Rd7 {[%clk 0:01:48]} 20. Ne3 {[%clk 0:02:41.9]} 20... Rad8 {[%clk 0:01:45.2]}
21. Nxc4 {[%clk 0:02:39.8]} 21... Bxc4 {[%clk 0:01:44.3]} 22. Re1 {[%clk
0:02:40.5]} 22... Rd3 {[%clk 0:01:37.3]} 23. Bg5 {[%clk 0:02:35.9]} 23... h6
{[%clk 0:01:22]} 24. Bf4 {[%clk 0:02:30.8]} 24... Bxc3 {[%clk 0:01:19.2]} 25.
bxc3 {[%clk 0:02:30.6]} 25... Rxc3 {[%clk 0:01:20.1]} 26. Red1 {[%clk
0:02:25.1]} 26... Rcd3 {[%clk 0:01:18.7]} 27. Rxd3 {[%clk 0:02:24.6]} 27... Bxd3
{[%clk 0:01:15.1]} 28. Rd1 {[%clk 0:02:23.6]} 28... c5 {[%clk 0:01:09.8]} 29. e5
{[%clk 0:02:22.3]} 29... Ne8 {[%clk 0:01:02.8]} 30. Bxb7 {[%clk 0:02:22.1]}
30... c4 {[%clk 0:01:02.3]} 31. Ba6 {[%clk 0:02:21.4]} 31... Rd5 {[%clk
0:00:50.6]} 32. Bb7 {[%clk 0:02:13.6]} 32... Ra5 {[%clk 0:00:48.1]} 33. Bc6
{[%clk 0:02:12.3]} 33... Nc7 {[%clk 0:00:46.5]} 34. a4 {[%clk 0:02:11.9]} 34...
Ne6 {[%clk 0:00:46]} 35. Bb5 {[%clk 0:02:08]} 35... a6 {[%clk 0:00:44.4]} 36.
Bd2 {[%clk 0:02:02]} 36... Rxb5 {[%clk 0:00:43.4]} 37. axb5 {[%clk 0:02:01.1]}
37... axb5 {[%clk 0:00:43.9]} 38. f4 {[%clk 0:01:57]} 38... Nd4 {[%clk 0:00:43]}
39. Kf2 {[%clk 0:01:57.2]} 39... Nc2 {[%clk 0:00:40.6]} 40. Rb1 {[%clk
0:01:54.6]} 40... Nd4 {[%clk 0:00:35]} 41. Rb2 {[%clk 0:01:50.4]} 41... Nb3
{[%clk 0:00:32.8]} 42. Bc3 {[%clk 0:01:50.2]} 42... Kf8 {[%clk 0:00:31.5]} 43.
Ra2 {[%clk 0:01:49.4]} 43... Ke7 {[%clk 0:00:29.1]} 44. Ra7+ {[%clk 0:01:48.8]}
44... Ke6 {[%clk 0:00:29]} 45. g4 {[%clk 0:01:49]} 45... Nc5 {[%clk 0:00:25.7]}
46. f5+ {[%clk 0:01:48.4]} 46... Kd5 {[%clk 0:00:25.9]} 47. Ke3 {[%clk
0:01:41.1]} 47... Ne4 {[%clk 0:00:18.2]} 48. Rd7+ {[%clk 0:01:35.3]} 48... Kc6
{[%clk 0:00:17.7]} 49. Rxd3 {[%clk 0:01:35.2]} 49... cxd3 {[%clk 0:00:16.5]} 50.
Kxe4 {[%clk 0:01:35.5]} 1-0

[Event "*** SCC Grand Prix: Titled Tuesday Blitz"]
[Site "Chess.com"]
[Date "2020.07.21"]
[Round "2"]
[White "djano"]
[Black "ManuDavid2910"]
[Result "0-1"]
[WhiteElo "2461"]
[BlackElo "2686"]
[TimeControl "180+1"]
[EndTime "10:16:41 PDT"]
[Termination "ManuDavid2910 won by resignation"]

1. d4 {[%clk 0:03:00.9]} 1... Nf6 {[%clk 0:03:00]} 2. Nf3 {[%clk 0:03:01]} 2...
e6 {[%clk 0:03:00.5]} 3. g3 {[%clk 0:02:59.1]} 3... d5 {[%clk 0:03:01.4]} 4. Bg2
{[%clk 0:02:59.3]} 4... c5 {[%clk 0:03:01.9]} 5. c4 {[%clk 0:02:58.1]} 5... Nc6
{[%clk 0:03:02.1]} 6. cxd5 {[%clk 0:02:57.8]} 6... exd5 {[%clk 0:03:03]} 7. Nc3
{[%clk 0:02:57]} 7... Bg4 {[%clk 0:03:03.4]} 8. dxc5 {[%clk 0:02:54.7]} 8...
Bxc5 {[%clk 0:03:04.3]} 9. O-O {[%clk 0:02:51.7]} 9... h6 {[%clk 0:03:04]} 10.
b3 {[%clk 0:02:45.2]} 10... O-O {[%clk 0:03:03.4]} 11. Bb2 {[%clk 0:02:45.2]}
11... Re8 {[%clk 0:03:03.4]} 12. Rc1 {[%clk 0:02:41.1]} 12... Bb6 {[%clk
0:03:03.5]} 13. Na4 {[%clk 0:02:39.4]} 13... Ne4 {[%clk 0:03:03.6]} 14. Nxb6
{[%clk 0:02:23.6]} 14... Qxb6 {[%clk 0:03:04.5]} 15. e3 {[%clk 0:02:02.3]} 15...
Rad8 {[%clk 0:03:03]} 16. h3 {[%clk 0:01:41.7]} 16... Bh5 {[%clk 0:03:02.3]} 17.
g4 {[%clk 0:01:37]} 17... Bg6 {[%clk 0:03:01.9]} 18. Nd4 {[%clk 0:01:37.2]}
18... Nb4 {[%clk 0:02:51.2]} 19. Nf5 {[%clk 0:01:10.2]} 19... Bxf5 {[%clk
0:02:35]} 20. gxf5 {[%clk 0:01:11.1]} 20... Nxa2 {[%clk 0:02:34.8]} 21. Ra1
{[%clk 0:01:10.7]} 21... Nac3 {[%clk 0:02:32.4]} 22. Qg4 {[%clk 0:01:04.8]}
22... Nf6 {[%clk 0:02:27]} 23. Qh4 {[%clk 0:00:49.4]} 23... d4 {[%clk
0:02:26.3]} 24. e4 {[%clk 0:00:35]} 24... Nfxe4 {[%clk 0:02:09.9]} 25. Kh1
{[%clk 0:00:33]} 25... d3 {[%clk 0:01:45.7]} 26. Bxe4 {[%clk 0:00:32.3]} 26...
Nxe4 {[%clk 0:01:45]} 27. Qg4 {[%clk 0:00:26.6]} 27... f6 {[%clk 0:01:39.8]} 28.
Qg2 {[%clk 0:00:23.6]} 28... d2 {[%clk 0:01:34]} 29. Rad1 {[%clk 0:00:21.1]}
29... Qxb3 {[%clk 0:01:30.4]} 30. Ba1 {[%clk 0:00:21.1]} 30... Rd3 {[%clk
0:01:26.4]} 31. Kh2 {[%clk 0:00:19.9]} 31... Ng5 {[%clk 0:01:19.8]} 32. f3
{[%clk 0:00:19]} 32... Rxf3 {[%clk 0:01:12.2]} 33. Rxf3 {[%clk 0:00:17.6]} 33...
Qxf3 {[%clk 0:01:13.1]} 34. Qxf3 {[%clk 0:00:16.5]} 34... Nxf3+ {[%clk
0:01:13.1]} 35. Kg2 {[%clk 0:00:17.4]} 35... Re1 {[%clk 0:01:13.6]} 0-1

[Event "*** SCC Grand Prix: Titled Tuesday Blitz"]
[Site "Chess.com"]
[Date "2020.07.21"]
[Round "2"]
[White "Rap_woyska"]
[Black "a3aki"]
[Result "1-0"]
[WhiteElo "2373"]
[BlackElo "2031"]
[TimeControl "180+1"]
[EndTime "10:16:41 PDT"]
[Termination "Rap_woyska won by checkmate"]

1. c4 {[%clk 0:03:00.9]} 1... Nf6 {[%clk 0:02:59.5]} 2. Nf3 {[%clk 0:03:00.9]}
2... g6 {[%clk 0:03:00.4]} 3. Nc3 {[%clk 0:02:56.4]} 3... d6 {[%clk 0:02:59.3]}
4. d4 {[%clk 0:02:54.9]} 4... Bg7 {[%clk 0:02:59.6]} 5. g3 {[%clk 0:02:55.1]}
5... O-O {[%clk 0:02:59.4]} 6. Bg2 {[%clk 0:02:56]} 6... Nc6 {[%clk 0:02:59.4]}
7. O-O {[%clk 0:02:56.9]} 7... a6 {[%clk 0:02:58.3]} 8. d5 {[%clk 0:02:57.2]}
8... Na5 {[%clk 0:02:57.4]} 9. b3 {[%clk 0:02:58.1]} 9... c5 {[%clk 0:02:38.9]}
10. dxc6 {[%clk 0:02:58]} 10... Nxc6 {[%clk 0:02:37.7]} 11. Bb2 {[%clk
0:02:58.6]} 11... Bd7 {[%clk 0:02:34.5]} 12. Ne1 {[%clk 0:02:50.7]} 12... Rc8
{[%clk 0:02:26]} 13. Nd3 {[%clk 0:02:50.8]} 13... Ng4 {[%clk 0:02:20.2]} 14. h3
{[%clk 0:02:41.1]} 14... Nge5 {[%clk 0:02:19.7]} 15. Nf4 {[%clk 0:02:41.7]}
15... Qa5 {[%clk 0:02:01.9]} 16. Rc1 {[%clk 0:02:39.7]} 16... b5 {[%clk
0:01:44.5]} 17. cxb5 {[%clk 0:02:17.6]} 17... axb5 {[%clk 0:01:44.3]} 18. Qd2
{[%clk 0:01:47.9]} 18... b4 {[%clk 0:01:41.2]} 19. Na4 {[%clk 0:01:46.6]} 19...
Na7 {[%clk 0:01:28.3]} 20. Nd5 {[%clk 0:01:40.1]} 20... Nec6 {[%clk 0:01:11.4]}
21. Ndb6 {[%clk 0:01:35.8]} 21... Rc7 {[%clk 0:01:08.5]} 22. Bxg7 {[%clk
0:01:35.1]} 22... Kxg7 {[%clk 0:01:07.9]} 23. Nxd7 {[%clk 0:01:34.6]} 23... Rxd7
{[%clk 0:01:07.7]} 24. Bxc6 {[%clk 0:01:35.2]} 24... Nxc6 {[%clk 0:01:07.6]} 25.
Rxc6 {[%clk 0:01:36]} 25... Qe5 {[%clk 0:01:05.6]} 26. Qb2 {[%clk 0:01:24.6]}
26... Qxb2 {[%clk 0:01:04.2]} 27. Nxb2 {[%clk 0:01:25.5]} 27... Ra8 {[%clk
0:01:03.7]} 28. Na4 {[%clk 0:01:25.8]} 28... Rb7 {[%clk 0:01:02.2]} 29. Rfc1
{[%clk 0:01:25.7]} 29... Raa7 {[%clk 0:00:59.2]} 30. e3 {[%clk 0:01:25.2]} 30...
Kf6 {[%clk 0:00:55.7]} 31. Kf1 {[%clk 0:01:25.3]} 31... Ke6 {[%clk 0:00:55]} 32.
Ke2 {[%clk 0:01:25.9]} 32... Kd7 {[%clk 0:00:44]} 33. Rb6 {[%clk 0:01:25.8]}
33... Rc7 {[%clk 0:00:41]} 34. Rxc7+ {[%clk 0:01:24.7]} 34... Rxc7 {[%clk
0:00:41]} 35. Kd2 {[%clk 0:01:25.6]} 35... e5 {[%clk 0:00:25.2]} 36. Rxb4 {[%clk
0:01:23.2]} 36... f5 {[%clk 0:00:23.9]} 37. Rb6 {[%clk 0:01:22.2]} 37... Ke6
{[%clk 0:00:22.8]} 38. Nc3 {[%clk 0:01:22]} 38... Ra7 {[%clk 0:00:21.3]} 39. a4
{[%clk 0:01:21.8]} 39... g5 {[%clk 0:00:19.7]} 40. b4 {[%clk 0:01:21.9]} 40...
h5 {[%clk 0:00:20.2]} 41. a5 {[%clk 0:01:22.1]} 41... h4 {[%clk 0:00:21.1]} 42.
gxh4 {[%clk 0:01:22]} 42... gxh4 {[%clk 0:00:20.9]} 43. a6 {[%clk 0:01:22.4]}
43... Rg7 {[%clk 0:00:20.3]} 44. Rb7 {[%clk 0:01:20.3]} 44... Rg2 {[%clk
0:00:21.2]} 45. Nd1 {[%clk 0:01:18.8]} 45... Rh2 {[%clk 0:00:20.5]} 46. a7
{[%clk 0:01:19.3]} 46... Rxh3 {[%clk 0:00:21.1]} 47. a8=Q {[%clk 0:01:19.9]}
47... Rg3 {[%clk 0:00:21.1]} 48. Qc8+ {[%clk 0:01:19.8]} 48... Kd5 {[%clk
0:00:20.6]} 49. Rb5+ {[%clk 0:01:19.9]} 49... Ke4 {[%clk 0:00:21.4]} 50. Qc6+
{[%clk 0:01:19]} 50... d5 {[%clk 0:00:19.4]} 51. Qxd5# {[%clk 0:01:19.9]} 1-0

[Event "*** SCC Grand Prix: Titled Tuesday Blitz"]
[Site "Chess.com"]
[Date "2020.07.21"]
[Round "2"]
[White "Fighter008"]
[Black "GOGIEFF"]
[Result "0-1"]
[WhiteElo "2575"]
[BlackElo "2900"]
[TimeControl "180+1"]
[EndTime "10:16:45 PDT"]
[Termination "GOGIEFF won by resignation"]

1. e4 {[%clk 0:03:00.9]} 1... c5 {[%clk 0:02:57.4]} 2. Nf3 {[%clk 0:03:00.5]}
2... d6 {[%clk 0:02:55.9]} 3. d4 {[%clk 0:02:59.7]} 3... cxd4 {[%clk 0:02:56.8]}
4. Nxd4 {[%clk 0:03:00.6]} 4... Nf6 {[%clk 0:02:57.3]} 5. Nc3 {[%clk 0:03:00.8]}
5... a6 {[%clk 0:02:57.5]} 6. Be3 {[%clk 0:03:00.3]} 6... Nbd7 {[%clk
0:02:56.8]} 7. g4 {[%clk 0:02:54.1]} 7... d5 {[%clk 0:02:55.7]} 8. Qe2 {[%clk
0:02:42.2]} 8... e5 {[%clk 0:02:34.2]} 9. O-O-O {[%clk 0:02:35.4]} 9... exd4
{[%clk 0:02:12.3]} 10. Bxd4 {[%clk 0:02:34.4]} 10... Be7 {[%clk 0:02:01.9]} 11.
exd5 {[%clk 0:02:32.5]} 11... O-O {[%clk 0:01:59.7]} 12. g5 {[%clk 0:02:25.6]}
12... Ne8 {[%clk 0:01:56.5]} 13. h4 {[%clk 0:02:25.8]} 13... Bc5 {[%clk
0:01:56.3]} 14. Bxc5 {[%clk 0:02:14.4]} 14... Nxc5 {[%clk 0:01:55.6]} 15. d6
{[%clk 0:02:14.7]} 15... Be6 {[%clk 0:01:43.6]} 16. Qe5 {[%clk 0:02:06.5]} 16...
Rc8 {[%clk 0:01:41.6]} 17. f4 {[%clk 0:01:59.7]} 17... Nd7 {[%clk 0:01:34.2]}
18. Qd4 {[%clk 0:01:53.1]} 18... Qa5 {[%clk 0:01:30.7]} 19. a3 {[%clk 0:01:48]}
19... Qc5 {[%clk 0:01:16.5]} 20. Qe4 {[%clk 0:01:34.7]} 20... Nxd6 {[%clk
0:01:11.5]} 21. Rxd6 {[%clk 0:01:21.6]} 21... Qxd6 {[%clk 0:01:12.4]} 22. f5
{[%clk 0:01:22.1]} 22... Nc5 {[%clk 0:01:06.5]} 23. Qf3 {[%clk 0:01:19]} 23...
Bd7 {[%clk 0:01:05.7]} 24. Bc4 {[%clk 0:01:17.1]} 24... Bc6 {[%clk 0:01:04.6]}
25. Nd5 {[%clk 0:01:15.5]} 25... b5 {[%clk 0:01:00.8]} 26. Ba2 {[%clk
0:01:15.3]} 26... Rfd8 {[%clk 0:00:52]} 27. Rd1 {[%clk 0:01:15]} 27... Qe5
{[%clk 0:00:52.3]} 28. g6 {[%clk 0:00:55.8]} 28... Na4 {[%clk 0:00:47.1]} 29.
gxf7+ {[%clk 0:00:39.4]} 29... Kf8 {[%clk 0:00:46.8]} 30. c3 {[%clk 0:00:29.4]}
30... Bxd5 {[%clk 0:00:46.6]} 31. Bxd5 {[%clk 0:00:28.8]} 31... Nxc3 {[%clk
0:00:46.3]} 0-1

[Event "*** SCC Grand Prix: Titled Tuesday Blitz"]
[Site "Chess.com"]
[Date "2020.07.21"]
[Round "2"]
[White "maciejos95"]
[Black "Iljushin_Alexey"]
[Result "1-0"]
[WhiteElo "2491"]
[BlackElo "2699"]
[TimeControl "180+1"]
[EndTime "10:16:49 PDT"]
[Termination "maciejos95 won by checkmate"]

1. e4 {[%clk 0:03:00.9]} 1... c6 {[%clk 0:03:00.1]} 2. d4 {[%clk 0:03:00.6]}
2... d5 {[%clk 0:03:00.4]} 3. Nc3 {[%clk 0:03:01]} 3... dxe4 {[%clk 0:03:00.2]}
4. Nxe4 {[%clk 0:03:01.3]} 4... Nf6 {[%clk 0:03:00.9]} 5. Nxf6+ {[%clk
0:03:00.7]} 5... gxf6 {[%clk 0:03:01.5]} 6. Nf3 {[%clk 0:02:51]} 6... h5 {[%clk
0:03:02]} 7. g3 {[%clk 0:02:47.5]} 7... Bg4 {[%clk 0:03:01.2]} 8. Bg2 {[%clk
0:02:47.6]} 8... h4 {[%clk 0:03:01]} 9. h3 {[%clk 0:02:45.7]} 9... Bxf3 {[%clk
0:02:56.2]} 10. Bxf3 {[%clk 0:02:43.6]} 10... hxg3 {[%clk 0:02:50.4]} 11. fxg3
{[%clk 0:02:43.6]} 11... e6 {[%clk 0:02:50.5]} 12. Bf4 {[%clk 0:02:39.7]} 12...
Bd6 {[%clk 0:02:47.7]} 13. Qd2 {[%clk 0:02:37.7]} 13... Qc7 {[%clk 0:02:46.4]}
14. O-O-O {[%clk 0:02:33.1]} 14... Nd7 {[%clk 0:02:43.3]} 15. h4 {[%clk
0:02:21.4]} 15... O-O-O {[%clk 0:02:39.8]} 16. h5 {[%clk 0:02:21.2]} 16... Bxf4
{[%clk 0:02:35.2]} 17. gxf4 {[%clk 0:02:21.2]} 17... f5 {[%clk 0:02:34.4]} 18.
Qe3 {[%clk 0:02:09.9]} 18... Rh6 {[%clk 0:02:23.5]} 19. Rdg1 {[%clk 0:02:06.9]}
19... Rdh8 {[%clk 0:02:19.8]} 20. Rg7 {[%clk 0:01:56.8]} 20... Nf6 {[%clk
0:02:19.6]} 21. Qe5 {[%clk 0:01:53]} 21... Qd7 {[%clk 0:01:52.1]} 22. Rhg1
{[%clk 0:01:46.9]} 22... a6 {[%clk 0:01:43.2]} 23. c3 {[%clk 0:01:43.9]} 23...
Qc7 {[%clk 0:01:40.6]} 24. Qxc7+ {[%clk 0:01:42.9]} 24... Kxc7 {[%clk
0:01:40.1]} 25. Rxf7+ {[%clk 0:01:43.4]} 25... Kd6 {[%clk 0:01:38.4]} 26. Rgg7
{[%clk 0:01:39.3]} 26... c5 {[%clk 0:01:13]} 27. Rxb7 {[%clk 0:01:35.7]} 27...
cxd4 {[%clk 0:01:12.6]} 28. cxd4 {[%clk 0:01:31.5]} 28... Nd5 {[%clk 0:01:10.5]}
29. Rgd7+ {[%clk 0:00:55.8]} 29... Kc6 {[%clk 0:01:10.2]} 30. Rbc7+ {[%clk
0:00:47.7]} 30... Kb6 {[%clk 0:01:09.3]} 31. Bxd5 {[%clk 0:00:48]} 31... exd5
{[%clk 0:01:09]} 32. Rc5 {[%clk 0:00:40.3]} 32... Rxh5 {[%clk 0:01:05.6]} 33.
Rdxd5 {[%clk 0:00:40.3]} 33... Rh2 {[%clk 0:01:01.8]} 34. Rc2 {[%clk 0:00:34]}
34... Rxc2+ {[%clk 0:00:57.8]} 35. Kxc2 {[%clk 0:00:34.2]} 35... Rh2+ {[%clk
0:00:56.2]} 36. Kb3 {[%clk 0:00:33.8]} 36... Rh5 {[%clk 0:00:56.2]} 37. Re5
{[%clk 0:00:33.2]} 37... Kc6 {[%clk 0:00:55.9]} 38. Kc4 {[%clk 0:00:32.4]} 38...
Rh2 {[%clk 0:00:55.1]} 39. b4 {[%clk 0:00:28.2]} 39... Rc2+ {[%clk 0:00:53.9]}
40. Kb3 {[%clk 0:00:27.3]} 40... Rd2 {[%clk 0:00:54.1]} 41. Rxf5 {[%clk
0:00:27.3]} 41... Rxd4 {[%clk 0:00:53.8]} 42. Rf6+ {[%clk 0:00:27.8]} 42... Kb5
{[%clk 0:00:51]} 43. a4# {[%clk 0:00:27.5]} 1-0

[Event "*** SCC Grand Prix: Titled Tuesday Blitz"]
[Site "Chess.com"]
[Date "2020.07.21"]
[Round "2"]
[White "krzyzan94"]
[Black "ZverevLev"]
[Result "1-0"]
[WhiteElo "2649"]
[BlackElo "2312"]
[TimeControl "180+1"]
[EndTime "10:16:50 PDT"]
[Termination "krzyzan94 won by resignation"]

1. d4 {[%clk 0:03:00.9]} 1... e6 {[%clk 0:02:55]} 2. e4 {[%clk 0:03:00.3]} 2...
c5 {[%clk 0:02:54.1]} 3. Nf3 {[%clk 0:02:56]} 3... cxd4 {[%clk 0:02:52.5]} 4.
Nxd4 {[%clk 0:02:56.9]} 4... a6 {[%clk 0:02:52.8]} 5. Bd3 {[%clk 0:02:54.3]}
5... Qc7 {[%clk 0:02:49.9]} 6. O-O {[%clk 0:02:52.1]} 6... Nc6 {[%clk
0:02:49.9]} 7. Nxc6 {[%clk 0:02:47.6]} 7... bxc6 {[%clk 0:02:48.2]} 8. c4 {[%clk
0:02:47.4]} 8... Nf6 {[%clk 0:02:43.5]} 9. Nc3 {[%clk 0:02:47.3]} 9... Be7
{[%clk 0:02:39.4]} 10. Re1 {[%clk 0:02:45.7]} 10... d6 {[%clk 0:02:39.5]} 11. b3
{[%clk 0:02:45.1]} 11... O-O {[%clk 0:02:38.7]} 12. Bb2 {[%clk 0:02:45.2]} 12...
e5 {[%clk 0:02:38.9]} 13. Rc1 {[%clk 0:02:37.8]} 13... Be6 {[%clk 0:02:38.4]}
14. Na4 {[%clk 0:02:35.6]} 14... Rad8 {[%clk 0:02:33.3]} 15. Qe2 {[%clk
0:02:33.3]} 15... Qb8 {[%clk 0:02:28.5]} 16. c5 {[%clk 0:02:30.3]} 16... Nd7
{[%clk 0:02:14]} 17. cxd6 {[%clk 0:02:28.7]} 17... Bxd6 {[%clk 0:02:14.9]} 18.
Bxa6 {[%clk 0:02:27.4]} 18... Nb6 {[%clk 0:02:10.5]} 19. Nc5 {[%clk 0:02:18.3]}
19... Bc8 {[%clk 0:02:05.6]} 20. Bxc8 {[%clk 0:02:15.4]} 20... Qxc8 {[%clk
0:02:06.5]} 21. Qc2 {[%clk 0:02:08.5]} 21... Bxc5 {[%clk 0:02:04.8]} 22. Qxc5
{[%clk 0:02:07.9]} 22... Qa6 {[%clk 0:02:05.2]} 23. Qxe5 {[%clk 0:01:53.9]}
23... f6 {[%clk 0:02:04.1]} 24. Qe6+ {[%clk 0:01:51.1]} 24... Kh8 {[%clk
0:02:03.9]} 25. a4 {[%clk 0:01:31.8]} 25... Rd2 {[%clk 0:02:01.7]} 26. Bc3
{[%clk 0:01:24.7]} 26... Re2 {[%clk 0:02:01]} 27. Qxc6 {[%clk 0:01:09.6]} 27...
Qd3 {[%clk 0:01:54.1]} 28. Rxe2 {[%clk 0:01:03.8]} 28... Qxe2 {[%clk 0:01:53.4]}
29. Qxb6 {[%clk 0:01:03.6]} 29... Rc8 {[%clk 0:01:53.1]} 30. Qd4 {[%clk
0:01:00.1]} 30... h6 {[%clk 0:01:51.5]} 31. Qd2 {[%clk 0:00:57.3]} 31... Qxe4
{[%clk 0:01:49.4]} 32. Bb2 {[%clk 0:00:56.1]} 32... Re8 {[%clk 0:01:47.6]} 33.
h3 {[%clk 0:00:54.1]} 33... Qe6 {[%clk 0:01:46.7]} 34. Qc3 {[%clk 0:00:50.9]}
34... Rb8 {[%clk 0:01:45.7]} 35. b4 {[%clk 0:00:50.2]} 35... Qe4 {[%clk
0:01:42]} 36. Ba3 {[%clk 0:00:43.5]} 36... Qd5 {[%clk 0:01:39.3]} 37. b5 {[%clk
0:00:42.3]} 37... Qe4 {[%clk 0:01:36.8]} 38. Qb4 {[%clk 0:00:37.7]} 38... Qe2
{[%clk 0:01:32.7]} 39. b6 {[%clk 0:00:34.1]} 39... Qa6 {[%clk 0:01:30.1]} 40. a5
{[%clk 0:00:33.4]} 40... Qb7 {[%clk 0:01:28.1]} 41. Qb5 {[%clk 0:00:28.2]} 41...
Rd8 {[%clk 0:01:24.6]} 42. a6 {[%clk 0:00:25.3]} 42... Qe4 {[%clk 0:01:25.1]}
43. b7 {[%clk 0:00:23.3]} 43... Qf4 {[%clk 0:01:25.2]} 44. a7 {[%clk 0:00:20.2]}
44... Kh7 {[%clk 0:01:20]} 45. b8=Q {[%clk 0:00:19.7]} 45... Qxc1+ {[%clk
0:01:17.9]} 46. Bxc1 {[%clk 0:00:19.1]} 1-0

[Event "*** SCC Grand Prix: Titled Tuesday Blitz"]
[Site "Chess.com"]
[Date "2020.07.21"]
[Round "2"]
[White "ChristianAlm"]
[Black "Igor_Lysyj"]
[Result "0-1"]
[WhiteElo "2521"]
[BlackElo "2804"]
[TimeControl "180+1"]
[EndTime "10:16:52 PDT"]
[Termination "Igor_Lysyj won by resignation"]

1. d4 {[%clk 0:03:00.9]} 1... d5 {[%clk 0:02:59.2]} 2. Nf3 {[%clk 0:02:54.6]}
2... Nf6 {[%clk 0:02:58.5]} 3. Bf4 {[%clk 0:02:54]} 3... c5 {[%clk 0:02:57.7]}
4. e3 {[%clk 0:02:54]} 4... Nc6 {[%clk 0:02:56.8]} 5. Nc3 {[%clk 0:02:53.6]}
5... a6 {[%clk 0:02:38.1]} 6. Be2 {[%clk 0:02:49.8]} 6... Bg4 {[%clk 0:02:35.3]}
7. O-O {[%clk 0:02:47.7]} 7... e6 {[%clk 0:02:35.1]} 8. a3 {[%clk 0:02:42.1]}
8... cxd4 {[%clk 0:02:32.7]} 9. exd4 {[%clk 0:02:40.2]} 9... Be7 {[%clk
0:02:32.2]} 10. Re1 {[%clk 0:02:38.4]} 10... O-O {[%clk 0:02:32.2]} 11. Ne5
{[%clk 0:02:38]} 11... Bxe2 {[%clk 0:02:31.5]} 12. Nxe2 {[%clk 0:02:37.6]} 12...
Qb6 {[%clk 0:02:30.7]} 13. b4 {[%clk 0:02:11.1]} 13... a5 {[%clk 0:02:28.6]} 14.
Bg5 {[%clk 0:02:01.1]} 14... Qc7 {[%clk 0:02:21.6]} 15. Bf4 {[%clk 0:01:58.1]}
15... Nxe5 {[%clk 0:02:11.6]} 16. Bxe5 {[%clk 0:01:59]} 16... Qc4 {[%clk
0:02:10.9]} 17. c3 {[%clk 0:01:45.7]} 17... Nd7 {[%clk 0:02:10.2]} 18. Bg3
{[%clk 0:01:27.3]} 18... Rfc8 {[%clk 0:02:09.1]} 19. Qd2 {[%clk 0:01:23.9]}
19... Nf6 {[%clk 0:02:03.8]} 20. f3 {[%clk 0:01:22.3]} 20... Ra6 {[%clk
0:01:57]} 21. Rac1 {[%clk 0:01:07.1]} 21... Qb5 {[%clk 0:01:52]} 22. Nf4 {[%clk
0:01:04.2]} 22... axb4 {[%clk 0:01:45.4]} 23. cxb4 {[%clk 0:01:03.2]} 23... Rac6
{[%clk 0:01:35.3]} 24. Nd3 {[%clk 0:00:58.1]} 24... Rxc1 {[%clk 0:01:32.3]} 25.
Rxc1 {[%clk 0:00:57.2]} 25... Rxc1+ {[%clk 0:01:31.8]} 26. Nxc1 {[%clk
0:00:29.2]} 26... Qc4 {[%clk 0:01:31.4]} 27. h3 {[%clk 0:00:24.6]} 27... Nd7
{[%clk 0:01:25.8]} 28. Bf4 {[%clk 0:00:21.1]} 28... h6 {[%clk 0:01:18.2]} 29.
Be3 {[%clk 0:00:20.9]} 29... Nb6 {[%clk 0:01:17]} 30. Qd3 {[%clk 0:00:17.8]}
30... Qc6 {[%clk 0:01:11.3]} 31. Nb3 {[%clk 0:00:15.2]} 31... Nc4 {[%clk
0:01:10.8]} 32. Nc5 {[%clk 0:00:14.7]} 32... b6 {[%clk 0:01:09.9]} 33. Na6
{[%clk 0:00:11.8]} 33... Bd6 {[%clk 0:01:00.9]} 34. Bc1 {[%clk 0:00:08]} 34...
Qb5 {[%clk 0:00:55]} 0-1